[Event "Titled Tuesday Blitz May 11 2021"]
[White "Przybylski, Wojciech"]
[Black "Acor, Corey"]
[WhiteFideId "1117599"]
[BlackFideId "2024861"]
[WhiteElo "2317"]
[BlackElo "2807"]
[Result "0-1"]
[Round "02"]
[TimeControl "180+1"]
[Date "2021.05.11"]
[WhiteClock "0:00:08"]
[BlackClock "0:01:16"]

1. e4 {[%clk 0:03:00]}  e5 {[%clk 0:02:58]} 2. Nf3 {[%clk 0:03:00]}  Nc6 {[%clk 0:02:58]} 3. Bb5 {[%clk 0:02:59]}  Nge7 {[%clk 0:02:58]} 4. O-O {[%clk 0:02:57]}  d6 {[%clk 0:02:58]} 5. h3 {[%clk 0:02:57]}  Bd7 {[%clk 0:02:58]} 6. c3 {[%clk 0:02:56]}  Ng6 {[%clk 0:02:57]} 7. d4 {[%clk 0:02:53]}  Be7 {[%clk 0:02:58]} 8. Re1 {[%clk 0:02:52]}  O-O {[%clk 0:02:56]} 9. a4 {[%clk 0:02:49]}  Kh8 {[%clk 0:02:52]} 10. Bd3 {[%clk 0:02:43]}  f5 {[%clk 0:02:43]} 11. exf5 {[%clk 0:02:43]}  Bxf5 {[%clk 0:02:44]} 12. Bxf5 {[%clk 0:02:43]}  Rxf5 {[%clk 0:02:44]} 13. dxe5 {[%clk 0:02:41]}  Ncxe5 {[%clk 0:02:41]} 14. Nd4 {[%clk 0:02:39]}  Rf7 {[%clk 0:02:38]} 15. Na3 {[%clk 0:02:32]}  Qd7 {[%clk 0:02:37]} 16. Qh5 {[%clk 0:02:26]}  Raf8 {[%clk 0:02:34]} 17. Be3 {[%clk 0:02:24]}  a6 {[%clk 0:02:22]} 18. b4 {[%clk 0:01:46]}  Bh4 {[%clk 0:02:16]} 19. Qe2 {[%clk 0:01:37]}  Nf4 {[%clk 0:02:06]} 20. Bxf4 {[%clk 0:01:30]}  Rxf4 {[%clk 0:02:07]} 21. g3 {[%clk 0:00:19]}  Rxf2 {[%clk 0:01:55]} 22. Qxf2 {[%clk 0:00:17]}  Rxf2 {[%clk 0:01:56]} 23. Kxf2 {[%clk 0:00:17]}  Nd3+ {[%clk 0:01:41]} 24. Kg2 {[%clk 0:00:18]}  Nxe1+ {[%clk 0:01:41]} 25. Rxe1 {[%clk 0:00:18]}  Bf6 {[%clk 0:01:41]} 26. Nf3 {[%clk 0:00:17]}  Qxa4 {[%clk 0:01:40]} 27. Nc4 {[%clk 0:00:15]}  Qa2+ {[%clk 0:01:36]} 28. Kh1 {[%clk 0:00:11]}  h6 {[%clk 0:01:31]} 29. Ne3 {[%clk 0:00:11]}  Bxc3 {[%clk 0:01:29]} 30. Rf1 {[%clk 0:00:09]}  Qe2 {[%clk 0:01:29]} 31. Ng5 {[%clk 0:00:09]}  hxg5 {[%clk 0:01:22]} 32. Rf8+ {[%clk 0:00:08]}  Kh7 {[%clk 0:01:22]} 33. Ng4 {[%clk 0:00:08]}  Bd4 {[%clk 0:01:16]} 0-1


[Site "https://www.chess.com"]

[Event "Titled Tuesday Blitz May 11 2021"]
[White "Quintiliano Pinto, Renato R."]
[Black "Remolar Gallen, Jose"]
[WhiteFideId "2117568"]
[BlackFideId "2215187"]
[WhiteElo "2439"]
[BlackElo "2203"]
[Result "1-0"]
[Round "02"]
[TimeControl "180+1"]
[Date "2021.05.11"]
[WhiteClock "0:00:22"]
[BlackClock "0:00:02"]

1. d4 {[%clk 0:03:00]}  Nf6 {[%clk 0:02:59]} 2. c4 {[%clk 0:03:01]}  g6 {[%clk 0:02:59]} 3. Nf3 {[%clk 0:03:01]}  d6 {[%clk 0:03:00]} 4. Nc3 {[%clk 0:03:01]}  Bg7 {[%clk 0:03:00]} 5. Bg5 {[%clk 0:03:01]}  h6 {[%clk 0:02:55]} 6. Bh4 {[%clk 0:03:01]}  O-O {[%clk 0:02:53]} 7. e3 {[%clk 0:03:01]}  c5 {[%clk 0:02:47]} 8. d5 {[%clk 0:02:58]}  Qa5 {[%clk 0:02:43]} 9. Nd2 {[%clk 0:02:55]}  a6 {[%clk 0:02:19]} 10. a4 {[%clk 0:02:49]}  e6 {[%clk 0:02:05]} 11. Be2 {[%clk 0:02:39]}  Qb4 {[%clk 0:01:48]} 12. dxe6 {[%clk 0:02:00]}  Bxe6 {[%clk 0:01:45]} 13. Ra3 {[%clk 0:01:59]}  Nc6 {[%clk 0:01:39]} 14. Rb3 {[%clk 0:01:42]}  Qa5 {[%clk 0:01:36]} 15. O-O {[%clk 0:01:37]}  Nb4 {[%clk 0:01:19]} 16. Bf3 {[%clk 0:01:28]}  Rab8 {[%clk 0:01:14]} 17. Qe2 {[%clk 0:01:13]}  g5 {[%clk 0:00:57]} 18. Bg3 {[%clk 0:01:12]}  g4 {[%clk 0:00:58]} 19. Be4 {[%clk 0:01:11]}  Rfd8 {[%clk 0:00:49]} 20. f3 {[%clk 0:01:00]}  Nxe4 {[%clk 0:00:26]} 21. Ndxe4 {[%clk 0:00:57]}  gxf3 {[%clk 0:00:23]} 22. gxf3 {[%clk 0:00:52]}  d5 {[%clk 0:00:07]} 23. cxd5 {[%clk 0:00:39]}  Nxd5 {[%clk 0:00:04]} 24. Ra3 {[%clk 0:00:26]}  Rbc8 {[%clk 0:00:03]} 25. Bh4 {[%clk 0:00:22]}  Re8 {[%clk 0:00:03]} 26. Nxd5 {[%clk 0:00:21]}  Bxd5 {[%clk 0:00:02]} 27. Nf6+ {[%clk 0:00:22]} 1-0


[Site "https://www.chess.com"]

[Event "Titled Tuesday Blitz May 11 2021"]
[White "Reprintsev, Alexander"]
[Black "Aditya Mittal"]
[WhiteFideId "14100541"]
[BlackFideId "35042025"]
[WhiteElo "2177"]
[BlackElo "2171"]
[Result "0-1"]
[Round "02"]
[TimeControl "180+1"]
[Date "2021.05.11"]
[WhiteClock "0:00:31"]
[BlackClock "0:01:27"]

1. e4 {[%clk 0:03:00]}  c5 {[%clk 0:02:57]} 2. b3 {[%clk 0:03:00]}  Nc6 {[%clk 0:02:53]} 3. Bb2 {[%clk 0:02:51]}  d6 {[%clk 0:02:51]} 4. Bb5 {[%clk 0:02:46]}  Bd7 {[%clk 0:02:50]} 5. Ne2 {[%clk 0:02:37]}  a6 {[%clk 0:02:47]} 6. Bxc6 {[%clk 0:02:33]}  Bxc6 {[%clk 0:02:48]} 7. Ng3 {[%clk 0:02:28]}  Qd7 {[%clk 0:02:46]} 8. O-O {[%clk 0:02:05]}  O-O-O {[%clk 0:02:40]} 9. d4 {[%clk 0:00:45]}  cxd4 {[%clk 0:02:37]} 10. Qxd4 {[%clk 0:00:45]}  h5 {[%clk 0:02:34]} 11. Qa7 {[%clk 0:00:42]}  e5 {[%clk 0:02:16]} 12. Nc3 {[%clk 0:00:42]}  h4 {[%clk 0:02:10]} 13. Nf5 {[%clk 0:00:41]}  g6 {[%clk 0:01:54]} 14. Ne3 {[%clk 0:00:41]}  b5 {[%clk 0:01:41]} 15. Qxa6+ {[%clk 0:00:41]}  Qb7 {[%clk 0:01:41]} 16. Qxb7+ {[%clk 0:00:41]}  Kxb7 {[%clk 0:01:42]} 17. a4 {[%clk 0:00:39]}  bxa4 {[%clk 0:01:40]} 18. bxa4 {[%clk 0:00:37]}  Nf6 {[%clk 0:01:41]} 19. f3 {[%clk 0:00:35]}  Bh6 {[%clk 0:01:41]} 20. Ned5 {[%clk 0:00:35]}  Bxd5 {[%clk 0:01:36]} 21. Nxd5 {[%clk 0:00:34]}  Nxd5 {[%clk 0:01:36]} 22. exd5 {[%clk 0:00:35]}  Rc8 {[%clk 0:01:36]} 23. Rfb1 {[%clk 0:00:31]}  Ka8 {[%clk 0:01:29]} 24. Ba3 {[%clk 0:00:32]}  Rhd8 {[%clk 0:01:27]} 25. Rb6 {[%clk 0:00:31]}  Be3+ {[%clk 0:01:27]} 0-1


[Site "https://www.chess.com"]

[Event "Titled Tuesday Blitz May 11 2021"]
[White "Salinas Herrera, Pablo"]
[Black "De Waele, Warre"]
[WhiteFideId "3407128"]
[BlackFideId "241156"]
[WhiteElo "2541"]
[BlackElo "2183"]
[Result "1-0"]
[Round "02"]
[TimeControl "180+1"]
[Date "2021.05.11"]
[WhiteClock "0:00:05"]
[BlackClock "0:00:05"]

1. d4 {[%clk 0:03:00]}  Nf6 {[%clk 0:02:59]} 2. Bf4 {[%clk 0:03:00]}  d5 {[%clk 0:02:59]} 3. e3 {[%clk 0:03:00]}  c5 {[%clk 0:03:00]} 4. Nf3 {[%clk 0:02:59]}  Nc6 {[%clk 0:03:00]} 5. Nbd2 {[%clk 0:03:00]}  cxd4 {[%clk 0:02:55]} 6. exd4 {[%clk 0:03:00]}  Bf5 {[%clk 0:02:55]} 7. c3 {[%clk 0:03:00]}  e6 {[%clk 0:02:55]} 8. Qb3 {[%clk 0:03:01]}  Qc8 {[%clk 0:02:55]} 9. Be2 {[%clk 0:03:01]}  Be7 {[%clk 0:02:54]} 10. O-O {[%clk 0:03:02]}  O-O {[%clk 0:02:54]} 11. Rfe1 {[%clk 0:03:02]}  Ne4 {[%clk 0:02:49]} 12. Nxe4 {[%clk 0:03:00]}  Bxe4 {[%clk 0:02:49]} 13. Rac1 {[%clk 0:02:46]}  Na5 {[%clk 0:02:44]} 14. Qa4 {[%clk 0:02:37]}  Qd8 {[%clk 0:02:24]} 15. Ne5 {[%clk 0:02:33]}  a6 {[%clk 0:02:20]} 16. f3 {[%clk 0:02:26]}  Bg6 {[%clk 0:02:16]} 17. b4 {[%clk 0:02:11]}  Nc4 {[%clk 0:02:04]} 18. Bxc4 {[%clk 0:01:42]}  dxc4 {[%clk 0:02:03]} 19. Nxg6 {[%clk 0:01:42]}  hxg6 {[%clk 0:02:01]} 20. Rcd1 {[%clk 0:01:43]}  b5 {[%clk 0:01:53]} 21. Qc2 {[%clk 0:01:43]}  Bd6 {[%clk 0:01:45]} 22. Bxd6 {[%clk 0:01:32]}  Qxd6 {[%clk 0:01:46]} 23. a4 {[%clk 0:01:33]}  a5 {[%clk 0:01:43]} 24. bxa5 {[%clk 0:01:24]}  Rxa5 {[%clk 0:01:41]} 25. axb5 {[%clk 0:01:24]}  Rxb5 {[%clk 0:01:42]} 26. Qa4 {[%clk 0:01:21]}  Qc6 {[%clk 0:01:32]} 27. Re5 {[%clk 0:01:20]}  Rfb8 {[%clk 0:01:29]} 28. h3 {[%clk 0:00:34]}  Qe8 {[%clk 0:01:10]} 29. Qxc4 {[%clk 0:00:30]}  Rxe5 {[%clk 0:01:04]} 30. dxe5 {[%clk 0:00:31]}  Rc8 {[%clk 0:01:04]} 31. Qd4 {[%clk 0:00:31]}  Qc6 {[%clk 0:01:04]} 32. Rd3 {[%clk 0:00:31]}  Qb5 {[%clk 0:00:47]} 33. Kh2 {[%clk 0:00:19]}  Rc4 {[%clk 0:00:44]} 34. Qe3 {[%clk 0:00:17]}  Qc5 {[%clk 0:00:32]} 35. Rd8+ {[%clk 0:00:10]}  Kh7 {[%clk 0:00:31]} 36. Qg5 {[%clk 0:00:10]}  Qf2 {[%clk 0:00:21]} 37. Rf8 {[%clk 0:00:04]}  Rxc3 {[%clk 0:00:16]} 38. Qd8 {[%clk 0:00:04]}  g5 {[%clk 0:00:12]} 39. Rh8+ {[%clk 0:00:04]}  Kg6 {[%clk 0:00:12]} 40. Qg8 {[%clk 0:00:04]}  Kf5 {[%clk 0:00:05]} 41. Qxf7+ {[%clk 0:00:04]}  Kxe5 {[%clk 0:00:05]} 42. Qxg7+ {[%clk 0:00:05]}  Kf4 {[%clk 0:00:05]} 43. Qxc3 {[%clk 0:00:06]}  Qg3+ {[%clk 0:00:04]} 44. Kg1 {[%clk 0:00:05]}  e5 {[%clk 0:00:05]} 45. Rf8# {[%clk 0:00:05]} 1-0


[Site "https://www.chess.com"]

[Event "Titled Tuesday Blitz May 11 2021"]
[White "Sapunov, Evgeny"]
[Black "Brunner, Nicolas"]
[WhiteFideId "4126661"]
[BlackFideId "620246"]
[WhiteElo "2470"]
[BlackElo "2372"]
[Result "1-0"]
[Round "02"]
[TimeControl "180+1"]
[Date "2021.05.11"]
[WhiteClock "0:00:15"]
[BlackClock "0:00:02"]

1. c4 {[%clk 0:03:00]}  c5 {[%clk 0:02:58]} 2. Nf3 {[%clk 0:03:00]}  Nc6 {[%clk 0:02:58]} 3. Nc3 {[%clk 0:03:00]}  e5 {[%clk 0:02:57]} 4. e3 {[%clk 0:03:00]}  Nf6 {[%clk 0:02:56]} 5. d4 {[%clk 0:03:00]}  cxd4 {[%clk 0:02:56]} 6. exd4 {[%clk 0:03:01]}  e4 {[%clk 0:02:57]} 7. Nd2 {[%clk 0:03:01]}  Bb4 {[%clk 0:02:49]} 8. Nb3 {[%clk 0:03:01]}  O-O {[%clk 0:02:38]} 9. Bf4 {[%clk 0:03:01]}  d5 {[%clk 0:02:34]} 10. c5 {[%clk 0:03:01]}  Bg4 {[%clk 0:02:27]} 11. Qd2 {[%clk 0:03:00]}  Re8 {[%clk 0:02:05]} 12. Be3 {[%clk 0:02:59]}  b6 {[%clk 0:02:03]} 13. h3 {[%clk 0:02:57]}  Bh5 {[%clk 0:01:57]} 14. Bb5 {[%clk 0:02:56]}  Rc8 {[%clk 0:01:56]} 15. a3 {[%clk 0:02:52]}  Bxc3 {[%clk 0:01:55]} 16. Qxc3 {[%clk 0:02:49]}  Nd7 {[%clk 0:01:46]} 17. O-O {[%clk 0:02:46]}  bxc5 {[%clk 0:01:42]} 18. dxc5 {[%clk 0:02:44]}  Nde5 {[%clk 0:01:36]} 19. Bd4 {[%clk 0:02:25]}  Qg5 {[%clk 0:01:21]} 20. Kh2 {[%clk 0:02:02]}  Re6 {[%clk 0:01:17]} 21. Bxc6 {[%clk 0:01:56]}  Nxc6 {[%clk 0:01:14]} 22. Qg3 {[%clk 0:01:48]}  Qh6 {[%clk 0:01:05]} 23. Rac1 {[%clk 0:01:36]}  Be2 {[%clk 0:00:59]} 24. Rfe1 {[%clk 0:01:24]}  Bc4 {[%clk 0:00:54]} 25. Be3 {[%clk 0:01:14]}  Qh5 {[%clk 0:00:51]} 26. Nd4 {[%clk 0:01:11]}  Rg6 {[%clk 0:00:45]} 27. Qf4 {[%clk 0:01:08]}  Ne5 {[%clk 0:00:41]} 28. b3 {[%clk 0:00:58]}  Ba6 {[%clk 0:00:18]} 29. Qf5 {[%clk 0:00:50]}  Qxf5 {[%clk 0:00:11]} 30. Nxf5 {[%clk 0:00:49]}  Kf8 {[%clk 0:00:12]} 31. Rc3 {[%clk 0:00:44]}  Nd3 {[%clk 0:00:11]} 32. Rb1 {[%clk 0:00:40]}  Rf6 {[%clk 0:00:10]} 33. Nd4 {[%clk 0:00:37]}  Nxf2 {[%clk 0:00:08]} 34. b4 {[%clk 0:00:37]}  Bd3 {[%clk 0:00:03]} 35. Rbc1 {[%clk 0:00:35]}  Bc4 {[%clk 0:00:03]} 36. Rxc4 {[%clk 0:00:27]}  dxc4 {[%clk 0:00:03]} 37. Rxc4 {[%clk 0:00:27]}  Nd1 {[%clk 0:00:03]} 38. Bg5 {[%clk 0:00:25]}  Rg6 {[%clk 0:00:03]} 39. Bh4 {[%clk 0:00:24]}  e3 {[%clk 0:00:03]} 40. Nf3 {[%clk 0:00:24]}  e2 {[%clk 0:00:03]} 41. b5 {[%clk 0:00:22]}  Re6 {[%clk 0:00:03]} 42. c6 {[%clk 0:00:20]}  Ne3 {[%clk 0:00:03]} 43. Rc1 {[%clk 0:00:19]}  Nf1+ {[%clk 0:00:03]} 44. Kg1 {[%clk 0:00:19]}  f6 {[%clk 0:00:03]} 45. Bf2 {[%clk 0:00:19]}  Rce8 {[%clk 0:00:02]} 46. a4 {[%clk 0:00:17]}  Ke7 {[%clk 0:00:01]} 47. Bxa7 {[%clk 0:00:16]}  Kd6 {[%clk 0:00:01]} 48. Bf2 {[%clk 0:00:16]}  Ra8 {[%clk 0:00:01]} 49. b6 {[%clk 0:00:16]}  Kd5 {[%clk 0:00:02]} 50. c7 {[%clk 0:00:15]} 1-0


[Site "https://www.chess.com"]

[Event "Titled Tuesday Blitz May 11 2021"]
[White "Sarana, Alexey"]
[Black "De Silva, L M S T"]
[WhiteFideId "24133795"]
[BlackFideId "9953698"]
[WhiteElo "2629"]
[BlackElo "1621"]
[Result "1-0"]
[Round "02"]
[TimeControl "180+1"]
[Date "2021.05.11"]
[WhiteClock "0:01:00"]
[BlackClock "0:00:25"]

1. e4 {[%clk 0:03:00]}  e5 {[%clk 0:02:59]} 2. Nf3 {[%clk 0:03:01]}  Nc6 {[%clk 0:02:59]} 3. Bb5 {[%clk 0:03:02]}  a6 {[%clk 0:02:59]} 4. Ba4 {[%clk 0:03:02]}  Nf6 {[%clk 0:02:59]} 5. O-O {[%clk 0:03:02]}  Be7 {[%clk 0:03:00]} 6. Re1 {[%clk 0:03:03]}  b5 {[%clk 0:03:00]} 7. Bb3 {[%clk 0:03:03]}  d6 {[%clk 0:03:00]} 8. c3 {[%clk 0:03:03]}  O-O {[%clk 0:03:00]} 9. h3 {[%clk 0:03:04]}  Na5 {[%clk 0:03:00]} 10. Bc2 {[%clk 0:03:04]}  c5 {[%clk 0:03:00]} 11. d4 {[%clk 0:03:04]}  Nd7 {[%clk 0:03:01]} 12. d5 {[%clk 0:03:03]}  Nb6 {[%clk 0:02:59]} 13. Nbd2 {[%clk 0:03:03]}  Nb7 {[%clk 0:02:56]} 14. Nf1 {[%clk 0:03:00]}  b4 {[%clk 0:02:55]} 15. g4 {[%clk 0:02:57]}  Bd7 {[%clk 0:02:53]} 16. Ng3 {[%clk 0:02:57]}  Rb8 {[%clk 0:02:45]} 17. Nf5 {[%clk 0:02:56]}  Bxf5 {[%clk 0:02:39]} 18. gxf5 {[%clk 0:02:47]}  bxc3 {[%clk 0:02:27]} 19. bxc3 {[%clk 0:02:47]}  c4 {[%clk 0:02:27]} 20. Be3 {[%clk 0:02:43]}  Qc7 {[%clk 0:02:19]} 21. Kh2 {[%clk 0:02:42]}  Nc5 {[%clk 0:02:18]} 22. Rg1 {[%clk 0:02:42]}  Kh8 {[%clk 0:02:14]} 23. Qd2 {[%clk 0:02:39]}  Nba4 {[%clk 0:02:04]} 24. Rg4 {[%clk 0:02:17]}  Nb2 {[%clk 0:01:48]} 25. Rag1 {[%clk 0:02:15]}  Rg8 {[%clk 0:01:42]} 26. Ng5 {[%clk 0:02:01]}  Bxg5 {[%clk 0:01:40]} 27. Bxg5 {[%clk 0:02:00]}  f6 {[%clk 0:01:37]} 28. Be3 {[%clk 0:02:00]}  Nbd3 {[%clk 0:01:33]} 29. Rh4 {[%clk 0:02:00]}  Qf7 {[%clk 0:01:27]} 30. Qe2 {[%clk 0:01:55]}  Rb2 {[%clk 0:01:16]} 31. Rg6 {[%clk 0:01:21]}  Rd8 {[%clk 0:00:39]} 32. Qh5 {[%clk 0:01:20]}  Kg8 {[%clk 0:00:38]} 33. Qxh7+ {[%clk 0:01:19]}  Kf8 {[%clk 0:00:38]} 34. Rhg4 {[%clk 0:01:09]}  Rb7 {[%clk 0:00:30]} 35. Bh6 {[%clk 0:01:01]}  gxh6 {[%clk 0:00:26]} 36. Rg8+ {[%clk 0:01:00]}  Ke7 {[%clk 0:00:25]} 37. Qxf7+ {[%clk 0:01:00]} 1-0


[Site "https://www.chess.com"]

[Event "Titled Tuesday Blitz May 11 2021"]
[White "Sargsyan, Anna M."]
[Black "dropstoneDP"]
[WhiteFideId "13308130"]
[WhiteElo "2263"]
[BlackElo "2887"]
[Result "0-1"]
[Round "02"]
[TimeControl "180+1"]
[Date "2021.05.11"]
[WhiteClock "0:00:09"]
[BlackClock "0:00:31"]

1. d4 {[%clk 0:02:59]}  f5 {[%clk 0:02:59]} 2. c4 {[%clk 0:02:54]}  Nf6 {[%clk 0:02:59]} 3. Nc3 {[%clk 0:02:54]}  d6 {[%clk 0:02:59]} 4. Bg5 {[%clk 0:02:53]}  Nbd7 {[%clk 0:02:59]} 5. Qc2 {[%clk 0:02:52]}  g6 {[%clk 0:02:59]} 6. O-O-O {[%clk 0:02:50]}  h6 {[%clk 0:03:00]} 7. Bxf6 {[%clk 0:02:48]}  Nxf6 {[%clk 0:03:01]} 8. e4 {[%clk 0:02:48]}  Bg7 {[%clk 0:02:38]} 9. Bd3 {[%clk 0:02:32]}  fxe4 {[%clk 0:02:23]} 10. Nxe4 {[%clk 0:02:31]}  Nxe4 {[%clk 0:02:21]} 11. Bxe4 {[%clk 0:02:32]}  O-O {[%clk 0:02:21]} 12. Bxg6 {[%clk 0:02:29]}  e5 {[%clk 0:02:21]} 13. Nf3 {[%clk 0:01:43]}  Bg4 {[%clk 0:02:18]} 14. dxe5 {[%clk 0:01:38]}  Bxf3 {[%clk 0:01:44]} 15. gxf3 {[%clk 0:01:39]}  Qg5+ {[%clk 0:01:44]} 16. Kb1 {[%clk 0:01:39]}  Qxe5 {[%clk 0:01:44]} 17. Be4 {[%clk 0:01:38]}  Kh8 {[%clk 0:01:43]} 18. Rhg1 {[%clk 0:01:36]}  c6 {[%clk 0:01:36]} 19. Rg6 {[%clk 0:01:33]}  Rf6 {[%clk 0:01:26]} 20. Rxf6 {[%clk 0:00:56]}  Qxf6 {[%clk 0:01:27]} 21. Qc3 {[%clk 0:00:48]}  Qxc3 {[%clk 0:01:24]} 22. bxc3 {[%clk 0:00:49]}  Be5 {[%clk 0:01:23]} 23. Kc2 {[%clk 0:00:45]}  Rg8 {[%clk 0:01:10]} 24. Rb1 {[%clk 0:00:44]}  Rg7 {[%clk 0:01:09]} 25. h4 {[%clk 0:00:42]}  Kg8 {[%clk 0:01:09]} 26. h5 {[%clk 0:00:42]}  Kf8 {[%clk 0:01:08]} 27. Bg6 {[%clk 0:00:42]}  Re7 {[%clk 0:01:08]} 28. Kd3 {[%clk 0:00:40]}  Bf4 {[%clk 0:01:03]} 29. Rg1 {[%clk 0:00:38]}  Re6 {[%clk 0:00:58]} 30. Rg4 {[%clk 0:00:38]}  Rf6 {[%clk 0:00:58]} 31. Rg1 {[%clk 0:00:38]}  Ke7 {[%clk 0:00:56]} 32. Rb1 {[%clk 0:00:37]}  b6 {[%clk 0:00:55]} 33. Be4 {[%clk 0:00:37]}  Kd7 {[%clk 0:00:55]} 34. Rg1 {[%clk 0:00:37]}  Bg5 {[%clk 0:00:56]} 35. Rg3 {[%clk 0:00:31]}  a6 {[%clk 0:00:55]} 36. Bg6 {[%clk 0:00:30]}  b5 {[%clk 0:00:54]} 37. cxb5 {[%clk 0:00:30]}  axb5 {[%clk 0:00:55]} 38. Ke2 {[%clk 0:00:26]}  d5 {[%clk 0:00:53]} 39. Rg4 {[%clk 0:00:25]}  Kd6 {[%clk 0:00:54]} 40. a4 {[%clk 0:00:24]}  Re6+ {[%clk 0:00:52]} 41. Kd3 {[%clk 0:00:24]}  Rf6 {[%clk 0:00:51]} 42. Ke2 {[%clk 0:00:20]}  Kc5 {[%clk 0:00:47]} 43. axb5 {[%clk 0:00:20]}  cxb5 {[%clk 0:00:48]} 44. Kd3 {[%clk 0:00:20]}  Rxf3+ {[%clk 0:00:47]} 45. Kc2 {[%clk 0:00:17]}  Rxf2+ {[%clk 0:00:47]} 46. Kb3 {[%clk 0:00:11]}  Bc1 {[%clk 0:00:46]} 47. Bc2 {[%clk 0:00:12]}  Rh2 {[%clk 0:00:42]} 48. Rg8 {[%clk 0:00:11]}  Rxh5 {[%clk 0:00:38]} 49. Rc8+ {[%clk 0:00:12]}  Kd6 {[%clk 0:00:38]} 50. Rb8 {[%clk 0:00:12]}  Bd2 {[%clk 0:00:33]} 51. Rxb5 {[%clk 0:00:11]}  Rh3 {[%clk 0:00:33]} 52. Rb6+ {[%clk 0:00:11]}  Kc5 {[%clk 0:00:32]} 53. Rg6 {[%clk 0:00:12]}  Rxc3+ {[%clk 0:00:31]} 54. Kb2 {[%clk 0:00:12]}  Rh3 {[%clk 0:00:30]} 55. Bb3 {[%clk 0:00:12]}  Bc3+ {[%clk 0:00:30]} 56. Kc2 {[%clk 0:00:11]}  Be5 {[%clk 0:00:31]} 57. Rg8 {[%clk 0:00:11]}  Rc3+ {[%clk 0:00:31]} 58. Kb2 {[%clk 0:00:09]}  Rg3+ {[%clk 0:00:31]} 0-1


[Site "https://www.chess.com"]

[Event "Titled Tuesday Blitz May 11 2021"]
[White "Seo, Jung Min"]
[Black "Della Morte, German"]
[WhiteFideId "1734687"]
[BlackFideId "113522"]
[WhiteElo "2486"]
[BlackElo "2363"]
[Result "1-0"]
[Round "02"]
[TimeControl "180+1"]
[Date "2021.05.11"]
[WhiteClock "0:01:17"]
[BlackClock "0:00:20"]

1. e4 {[%clk 0:03:00]}  e5 {[%clk 0:02:55]} 2. Nf3 {[%clk 0:03:00]}  Nc6 {[%clk 0:02:55]} 3. Bc4 {[%clk 0:03:01]}  Nf6 {[%clk 0:02:55]} 4. d3 {[%clk 0:03:01]}  Bc5 {[%clk 0:02:55]} 5. c3 {[%clk 0:03:00]}  O-O {[%clk 0:02:53]} 6. a4 {[%clk 0:02:58]}  a6 {[%clk 0:02:48]} 7. O-O {[%clk 0:02:58]}  d6 {[%clk 0:02:47]} 8. Nbd2 {[%clk 0:02:56]}  Ba7 {[%clk 0:02:46]} 9. h3 {[%clk 0:02:52]}  Re8 {[%clk 0:02:43]} 10. Re1 {[%clk 0:02:51]}  h6 {[%clk 0:02:42]} 11. Nf1 {[%clk 0:02:51]}  Be6 {[%clk 0:02:42]} 12. Bxe6 {[%clk 0:02:50]}  Rxe6 {[%clk 0:02:43]} 13. Be3 {[%clk 0:02:46]}  Bxe3 {[%clk 0:02:39]} 14. Nxe3 {[%clk 0:02:45]}  Qd7 {[%clk 0:02:40]} 15. Qb3 {[%clk 0:02:45]}  b6 {[%clk 0:02:38]} 16. Nd5 {[%clk 0:02:44]}  Ne7 {[%clk 0:02:32]} 17. Nxe7+ {[%clk 0:02:40]}  Rxe7 {[%clk 0:02:27]} 18. Rad1 {[%clk 0:02:38]}  Rae8 {[%clk 0:02:27]} 19. Qc4 {[%clk 0:02:38]}  b5 {[%clk 0:02:25]} 20. axb5 {[%clk 0:02:38]}  axb5 {[%clk 0:02:26]} 21. Qb3 {[%clk 0:02:38]}  d5 {[%clk 0:02:25]} 22. Qc2 {[%clk 0:02:32]}  Qc6 {[%clk 0:02:24]} 23. exd5 {[%clk 0:02:28]}  Nxd5 {[%clk 0:02:21]} 24. d4 {[%clk 0:02:25]}  exd4 {[%clk 0:02:16]} 25. Rxe7 {[%clk 0:02:25]}  Rxe7 {[%clk 0:02:17]} 26. Nxd4 {[%clk 0:02:24]}  Qc5 {[%clk 0:02:05]} 27. Qf5 {[%clk 0:02:13]}  g6 {[%clk 0:01:38]} 28. Nb3 {[%clk 0:02:04]}  gxf5 {[%clk 0:01:30]} 29. Nxc5 {[%clk 0:02:04]}  c6 {[%clk 0:01:27]} 30. Kf1 {[%clk 0:02:02]}  Kg7 {[%clk 0:01:27]} 31. Nb3 {[%clk 0:01:56]}  Ra7 {[%clk 0:01:09]} 32. Nd4 {[%clk 0:01:54]}  Ne7 {[%clk 0:01:10]} 33. Ke2 {[%clk 0:01:45]}  Kf6 {[%clk 0:01:07]} 34. h4 {[%clk 0:01:44]}  Ra2 {[%clk 0:01:03]} 35. Rd2 {[%clk 0:01:43]}  Ra1 {[%clk 0:01:03]} 36. g3 {[%clk 0:01:41]}  Rb1 {[%clk 0:01:00]} 37. b4 {[%clk 0:01:38]}  Rc1 {[%clk 0:00:59]} 38. Rd3 {[%clk 0:01:36]}  Ra1 {[%clk 0:00:54]} 39. Nxc6 {[%clk 0:01:30]}  Ra2+ {[%clk 0:00:51]} 40. Kf3 {[%clk 0:01:29]}  Ng6 {[%clk 0:00:32]} 41. Rd6+ {[%clk 0:01:26]}  Kg7 {[%clk 0:00:33]} 42. h5 {[%clk 0:01:26]}  Nf8 {[%clk 0:00:32]} 43. Nd4 {[%clk 0:01:25]}  Ne6 {[%clk 0:00:24]} 44. Nxe6+ {[%clk 0:01:21]}  fxe6 {[%clk 0:00:25]} 45. Rxe6 {[%clk 0:01:21]}  Rc2 {[%clk 0:00:24]} 46. Rg6+ {[%clk 0:01:20]}  Kh7 {[%clk 0:00:24]} 47. Rc6 {[%clk 0:01:20]}  Kg7 {[%clk 0:00:25]} 48. Ke3 {[%clk 0:01:19]}  Kh7 {[%clk 0:00:25]} 49. f3 {[%clk 0:01:19]}  Rg2 {[%clk 0:00:25]} 50. Kf4 {[%clk 0:01:19]}  Rf2 {[%clk 0:00:22]} 51. Rc7+ {[%clk 0:01:18]}  Kg8 {[%clk 0:00:22]} 52. Rc5 {[%clk 0:01:18]}  Rc2 {[%clk 0:00:20]} 53. Kxf5 {[%clk 0:01:17]}  Kg7 {[%clk 0:00:20]} 54. f4 {[%clk 0:01:17]} 1-0


[Site "https://www.chess.com"]